fUSD/lending_fUSD_20240419
["ID","MTS","AMOUNT","RATE_DAILY","PERIOD"]
[322965524,1713547915127,-500.0,0.00015342,2]
[322965525,1713547915139,-2853.29,0.00015342,2]
[322965526,1713547915152,-822.25,0.00015342,2]
[322965527,1713547915166,-537.9,0.00015342,2]
[322965528,1713547915179,-894.82,0.00015342,2]
[322965529,1713547915190,-563.06,0.00015342,2]
[322965530,1713547915202,-1134.71,0.00015342,2]
[322965531,1713547915214,-1499.52,0.00015342,2]
[322965532,1713547915226,-903.85,0.00015342,2]
[322965533,1713547915239,-500.0,0.00015342,2]
[322965534,1713547915251,-1557.7,0.00015342,2]
[322965535,1713547915264,-786.62,0.00015342,2]
[322965536,1713547915278,-500.0,0.00015342,2]
[322965537,1713547915290,-500.0,0.00015342,2]
[322965538,1713547915303,-500.0,0.00015342,2]
[322965539,1713547915315,-1546.59,0.00015342,2]
[322965540,1713547915327,-795.02,0.00015342,2]
[322965541,1713547915340,-630.22,0.00015342,2]
[322965542,1713547915352,-500.0,0.00015342,2]
[322965543,1713547915365,-621.78,0.00015342,2]
[322965544,1713547915377,-1326.35,0.00015342,2]
[322965545,1713547915389,-519.1,0.00015342,2]
[322965546,1713547915402,-764.79,0.00015342,2]
[322965547,1713547915415,-500.0,0.00015342,2]
[322965548,1713547915428,-500.0,0.00015342,2]
[322965549,1713547915441,-500.0,0.00015342,2]
[322965550,1713547915457,-2412.88,0.00015342,2]
[322965551,1713547915470,-1738.05,0.00015342,2]
[322965552,1713547915483,-636.42,0.00015342,2]
[322965553,1713547915495,-938.98,0.00015342,2]
[322965554,1713547915507,-545.94,0.00015342,2]
[322965555,1713547915521,-531.08,0.00015342,2]
[322965556,1713547915534,-500.0,0.00015342,2]
[322965557,1713547915548,-500.0,0.00015342,2]
[322965558,1713547915560,-2340.34,0.00015342,2]
[322965559,1713547915573,-833.04,0.00015342,2]
[322965560,1713547915585,-1053.89,0.00015342,2]
[322965561,1713547915596,-855.66,0.00015342,2]
[322965562,1713547915609,-500.0,0.00015342,2]
[322965563,1713547915621,-500.0,0.00015342,2]
[322965564,1713547915633,-955.48,0.00015342,2]
[322965565,1713547915645,-642.26,0.00015342,2]
[322965566,1713547915659,-841.68,0.00015342,2]
[322965567,1713547915671,-500.0,0.00015342,2]
[322965568,1713547915684,-5268.86,0.00015342,2]
[322965569,1713547915696,-879.59,0.00015342,2]
[322965570,1713547915708,-1343.94,0.00015342,2]
[322965571,1713547915721,-500.0,0.00015342,2]
[322965572,1713547915733,-4733.91,0.00015342,2]
[322965573,1713547915744,-1082.66,0.00015342,2]
[322965574,1713547915755,-500.0,0.00015342,2]
[322965575,1713547915766,-500.0,0.00015342,2]
[322965576,1713547915776,-500.0,0.00015342,2]
[322965577,1713547915788,-1090.92,0.00015342,2]
[322965578,1713547915799,-1759.6,0.00015342,2]
[322965579,1713547915810,-500.0,0.00015342,2]
[322965580,1713547915823,-742.94,0.00015342,2]
[322965581,1713547915835,-567.95,0.00015342,2]
[322965582,1713547915847,-500.0,0.00015342,2]
[322965583,1713547915859,-500.0,0.00015342,2]
[322965584,1713547915870,-622.47,0.00015342,2]
[322965585,1713547915881,-4863.74,0.00015342,2]
[322965586,1713547915893,-2946.36,0.00015342,2]
[322965587,1713547915904,-252.08,0.00015342,2]
[322965588,1713547915916,-865.24,0.00015342,2]
[322965589,1713547915927,-500.0,0.00015342,2]
[322965590,1713547915939,-977.04,0.00015342,2]
[322965591,1713547915950,-1173.2,0.00015342,2]
[322965592,1713547915962,-705.94,0.00015342,2]
[322965593,1713547915973,-500.0,0.00015342,2]
[322965594,1713547915984,-1040.86,0.00015342,2]
[322965595,1713547915996,-1709.0,0.00015342,2]
[322965596,1713547916007,-1225.48,0.00015342,2]
[322965597,1713547916019,-1647.32,0.00015342,2]
[322965598,1713547916031,-1418.14,0.00015342,2]
[322965599,1713547916042,-1311.75,0.00015342,2]
[322965600,1713547916054,-2658.56,0.00015342,2]
[322965601,1713547916065,-969.72,0.00015342,2]
[322965602,1713547916076,-500.0,0.00015342,2]
[322965603,1713547916089,-6579.29,0.00015342,2]
[322965604,1713547916102,-500.0,0.00015342,2]
[322965605,1713547916114,-15195.99,0.00015342,2]
[322965606,1713547916125,-1735.44,0.00015342,2]
[322965607,1713547916137,-1421.48,0.00015342,2]
[322965608,1713547916149,-2819.15,0.00015342,2]
[322965609,1713547916163,-539.84,0.00015342,2]
[322965610,1713547916175,-3560.07,0.00015342,2]
[322965611,1713547916187,-755.96,0.00015342,2]
[322965612,1713547916199,-500.0,0.00015342,2]
[322965613,1713547916210,-11876.02,0.00015342,2]
[322965614,1713547916221,-1491.97,0.00015342,2]
[322965615,1713547916233,-500.0,0.00015342,2]
[322965616,1713547916244,-500.0,0.00015342,2]
[322965617,1713547916256,-765.25,0.00015342,2]
[322965618,1713547916267,-1279.81,0.00015342,2]
[322965619,1713547916279,-5736.72,0.00015342,2]
[322965620,1713547916290,-508.97,0.00015342,2]
[322965621,1713547916302,-1088.04,0.00015342,2]
[322965622,1713547916313,-629.73,0.00015342,2]
[322965623,1713547916324,-6573.7,0.00015342,2]
[322965624,1713547916336,-45218.75,0.00015342,2]
[322965625,1713547916348,-500.0,0.00015342,2]
[322965626,1713547916359,-500.0,0.00015342,2]
[322965627,1713547916371,-5396.18,0.00015342,2]
[322965628,1713547916382,-685.5,0.00015342,2]
[322965629,1713547916393,-500.0,0.00015342,2]
[322965630,1713547916405,-52964.1,0.00015342,2]
[322965631,1713547916417,-558.14,0.00015342,2]
[322965632,1713547916429,-1025.75,0.00015342,2]
[322965633,1713547916442,-681.73,0.00015342,2]
[322965634,1713547916454,-2662.99,0.00015342,2]
[322965635,1713547916466,-500.0,0.00015342,2]
[322965636,1713547916478,-2204.22,0.00015342,2]
[322965637,1713547916491,-5965.37,0.00015342,2]
[322965638,1713547916502,-3247.07,0.00015342,2]
[322965639,1713547916514,-500.0,0.00015342,2]
[322965640,1713547916527,-674.06,0.00015342,2]
[322965641,1713547916538,-12227.84,0.00015342,2]
[322965642,1713547916549,-500.0,0.00015342,2]
[322965643,1713547916562,-4761.03,0.00015342,2]
[322965644,1713547916573,-4123.91,0.00015342,2]
[322965645,1713547916585,-3343.38,0.00015342,2]
[322965646,1713547916596,-1367.3,0.00015342,2]
[322965647,1713547916608,-741.07,0.00015342,2]
[322965648,1713547916619,-757.02,0.00015342,2]
[322965649,1713547916630,-1610.38,0.00015342,2]
[322965650,1713547916642,-500.0,0.00015342,2]
[322965651,1713547916653,-5484.98,0.00015342,2]
[322965652,1713547916667,-3916.21,0.00015342,2]
[322965653,1713547916679,-928.0,0.00015342,2]
[322965654,1713547916690,-500.0,0.00015342,2]
[322965655,1713547916702,-6276.92,0.00015342,2]
[322965656,1713547916712,-500.0,0.00015342,2]
[322965657,1713547916724,-588.77,0.00015342,2]
[322965658,1713547916736,-500.0,0.00015342,2]
[322965659,1713547916747,-2018.33,0.00015342,2]
[322965660,1713547916758,-3262.35,0.00015342,2]
[322965661,1713547916769,-615.68,0.00015342,2]
[322965662,1713547916781,-585.61,0.00015342,2]
[322965663,1713547916792,-711.84,0.00015342,2]
[322965664,1713547916803,-6581.21,0.00015342,2]
[322965665,1713547916815,-2216.57,0.00015342,2]
[322965666,1713547916826,-3455.3,0.00015342,2]
[322965667,1713547916838,-11383.33,0.00015342,2]
[322965668,1713547916850,-1041.22,0.00015342,2]
[322965669,1713547916861,-500.0,0.00015342,2]
[322965670,1713547916873,-500.0,0.00015342,2]
[322965671,1713547916885,-4221.78,0.00015342,2]
[322965672,1713547916896,-500.0,0.00015342,2]
[322965673,1713547916909,-510.55,0.00015342,2]
[322965674,1713547916921,-2544.65,0.00015342,2]
[322965675,1713547916932,-5227.38,0.00015342,2]
[322965676,1713547916944,-1412.66,0.00015342,2]
[322965677,1713547916955,-500.0,0.00015342,2]
[322965678,1713547916966,-500.34,0.00015342,2]
[322965679,1713547916978,-1381.75,0.00015342,2]
[322965680,1713547916989,-500.0,0.00015342,2]
[322965681,1713547917000,-500.0,0.00015342,2]
[322965682,1713547917011,-1200.91,0.00015342,2]
[322965683,1713547917023,-1955.31,0.00015342,2]
[322965684,1713547917035,-1841.57,0.00015342,2]
[322965685,1713547917046,-2222.35,0.00015342,2]
[322965686,1713547917059,-725.96,0.00015342,2]
[322965687,1713547917070,-3026.62,0.00015342,2]
[322965688,1713547917082,-34683.45,0.00015342,2]
[322965689,1713547917093,-500.0,0.00015342,2]
[322965690,1713547917105,-1352.02,0.00015342,2]
[322965691,1713547917116,-1187.41,0.00015342,2]
[322965692,1713547917128,-2477.82,0.00015342,2]
[322965693,1713547917139,-48949.39,0.00015342,2]
[322965694,1713547917150,-838.58,0.00015342,2]
[322965695,1713547917163,-500.0,0.00015342,2]
[322965696,1713547917175,-500.0,0.00015342,2]
[322965697,1713547917186,-2826.35,0.00015342,2]
[322965698,1713547917198,-1497.49,0.00015342,2]
[322965699,1713547917210,-4102.58,0.00015342,2]
[322965700,1713547917221,-221.05459234,0.00015342,2]
[322965701,1713547917232,-6421.67,0.00015342,2]
[322965702,1713547917244,-575.23,0.00015342,2]
[322965703,1713547917257,-1636.84,0.00015342,2]
[322965704,1713547917268,-500.0,0.00015342,2]
[322965705,1713547917280,-665.25,0.00015342,2]
[322965706,1713547917292,-1692.21,0.00015342,2]
[322965707,1713547917304,-500.0,0.00015342,2]
[322965708,1713547917315,-890.38,0.00015342,2]
[322965709,1713547917327,-910.31,0.00015342,2]
[322965710,1713547917347,-614.94368259,0.00015342,2]
[322965711,1713547917358,-11912.4,0.00015342,2]
[322965712,1713547917370,-1407.06,0.00015342,2]
[322965713,1713547917381,-500.0,0.00015342,2]
[322965714,1713547917392,-3819.63,0.00015342,2]
[322965715,1713547917404,-1156.25,0.00015342,2]
[322965716,1713547917417,-1218.69,0.00015342,2]
[322965717,1713547917428,-618.87,0.00015342,2]
[322965718,1713547917439,-9676.28,0.00015342,2]
[322965719,1713547917455,-3329.81,0.00015342,2]
[322965720,1713547917466,-500.0,0.00015342,2]
[322965721,1713547917478,-500.0,0.00015342,2]
[322965722,1713547917490,-810.65,0.00015342,2]
[322965723,1713547917502,-2283.33,0.00015342,2]
[322965724,1713547917514,-1446.72,0.00015342,2]
[322965725,1713547917525,-503.4,0.00015342,2]
[322965726,1713547917537,-4544.04,0.00015342,2]
[322965727,1713547917548,-4158.65,0.00015342,2]
[322965728,1713547917559,-553.47,0.00015342,2]
[322965729,1713547917570,-1380.73,0.00015342,2]
[322965730,1713547917582,-500.0,0.00015342,2]
[322965731,1713547917593,-2200.13,0.00015342,2]
[322965732,1713547917605,-500.0,0.00015342,2]
[322965733,1713547917618,-5560.86,0.00015342,2]
[322965734,1713547917630,-1355.17,0.00015342,2]
[322965735,1713547917642,-500.0,0.00015342,2]
[322965736,1713547917654,-563.91,0.00015342,2]
[322965737,1713547917668,-4919.23,0.00015342,2]
[322965738,1713547917680,-1002.43,0.00015342,2]
[322965739,1713547917692,-3973.79,0.00015342,2]
[322965740,1713547917703,-1060.49,0.00015342,2]
[322965741,1713547917715,-579.36,0.00015342,2]
[322965742,1713547917726,-552.75,0.00015342,2]
[322965743,1713547917738,-763.03,0.00015342,2]
[322965744,1713547917749,-4595.55,0.00015342,2]
[322965745,1713547917760,-2855.28,0.00015342,2]
[322965746,1713547917772,-500.0,0.00015342,2]
[322965747,1713547917784,-783.48,0.00015342,2]
[322965748,1713547917796,-1158.83,0.00015342,2]
[322965749,1713547917807,-6542.37,0.00015342,2]
[322965750,1713547917818,-500.0,0.00015342,2]
[322965751,1713547917829,-881.51,0.00015342,2]
[322965752,1713547917841,-883.28,0.00015342,2]
[322965753,1713547917852,-500.0,0.00015342,2]
[322965754,1713547917863,-594.1,0.00015342,2]
[322965755,1713547917874,-1421.77,0.00015342,2]
[322965756,1713547917885,-500.0,0.00015342,2]
[322965757,1713547917896,-981.0,0.00015342,2]
[322965758,1713547917909,-6206.7,0.00015342,2]
[322965759,1713547917920,-1052.1,0.00015342,2]
[322965760,1713547917932,-1538.61,0.00015342,2]
[322965761,1713547917943,-4085.8,0.00015342,2]
[322965762,1713547917954,-4062.96,0.00015342,2]
[322965763,1713547917966,-500.0,0.00015342,2]
[322965764,1713547917977,-1948.78,0.00015342,2]
[322965765,1713547917990,-500.0,0.00015342,2]
[322965766,1713547918001,-500.0,0.00015342,2]
[322965767,1713547918013,-17497.97,0.00015342,2]
[322965768,1713547918025,-1007.95,0.00015342,2]
[322965769,1713547918036,-4425.62,0.00015342,2]
[322965770,1713547918048,-2639.01,0.00015342,2]
[322965771,1713547918060,-500.79,0.00015342,2]
[322965772,1713547918072,-861.47,0.00015342,2]
[322965773,1713547918083,-500.0,0.00015342,2]
[322965774,1713547918095,-1492.61,0.00015342,2]
[322965775,1713547918107,-2352.54,0.00015342,2]
[322965776,1713547918119,-500.0,0.00015342,2]
[322965777,1713547918132,-742.07,0.00015342,2]
[322965778,1713547918144,-581.8553883,0.00015342,2]
[322965779,1713547918155,-2108.24,0.00015342,2]
[322965780,1713547918746,-1292.25,0.00015342,2]
[322965781,1713547918771,-3161.42,0.00015342,2]
[322965782,1713547918781,-4352.24,0.00015342,2]
[322965783,1713547918791,-685.18,0.00015342,2]
[322965784,1713547918800,-654.56,0.00015342,2]
[322965785,1713547918809,-2475.19,0.00015342,2]
[322965786,1713547918819,-527.43,0.00015342,2]
[322965787,1713547918828,-811.56,0.00015342,2]
[322965788,1713547918837,-1931.25,0.00015342,2]
[322965789,1713547918847,-3289.05,0.00015342,2]
[322965790,1713547918857,-500.0,0.00015342,2]
[322965791,1713547918867,-2186.22,0.00015342,2]
[322965792,1713547918877,-2127.86,0.00015342,2]
[322965793,1713547918886,-500.0,0.00015342,2]
[322965794,1713547918896,-500.0,0.00015342,2]
[322965795,1713547918906,-634.17,0.00015342,2]
[322965796,1713547918917,-1946.84,0.00015342,2]
[322965797,1713547918926,-530.4,0.00015342,2]
[322965798,1713547918935,-3103.16,0.00015342,2]
[322965799,1713547918945,-579.92,0.00015342,2]
[322965800,1713547918957,-6085.95,0.00015342,2]
[322965801,1713547918967,-500.0,0.00015342,2]
[322965802,1713547918979,-500.0,0.00015342,2]
[322965803,1713547918989,-7088.93,0.00015342,2]
[322965804,1713547918999,-4287.56,0.00015342,2]
[322965805,1713547919009,-5419.22,0.00015342,2]
[322965806,1713547919020,-1208.62,0.00015342,2]
[322965807,1713547919032,-929.94,0.00015342,2]
[322965808,1713547919042,-1855.49,0.00015342,2]
[322965809,1713547919051,-645.16,0.00015342,2]
[322965810,1713547919062,-2058.59,0.00015342,2]
[322965811,1713547919072,-500.0,0.00015342,2]
[322965812,1713547919082,-1101.99,0.00015342,2]
[322965813,1713547919091,-4357.62,0.00015342,2]
[322965814,1713547919102,-1709.63,0.00015342,2]
[322965815,1713547919111,-2921.52,0.00015342,2]
[322965816,1713547919122,-3605.39,0.00015342,2]
[322965817,1713547919131,-2913.82,0.00015342,2]
[322965818,1713547919141,-2284.23,0.00015342,2]
[322965819,1713547919151,-3148.21,0.00015342,2]
[322965820,1713547919161,-3089.2,0.00015342,2]
[322965821,1713547919171,-887.62,0.00015342,2]
[322965822,1713547919180,-8483.21,0.00015342,2]
[322965823,1713547919190,-1335.04,0.00015342,2]
[322965824,1713547919200,-10199.48,0.00015342,2]
[322965825,1713547919210,-500.0,0.00015342,2]
[322965826,1713547919220,-2491.95,0.00015342,2]
[322965827,1713547919232,-2270.49,0.00015342,2]
[322965828,1713547919242,-906.26,0.00015342,2]
[322965829,1713547919252,-500.0,0.00015342,2]
[322965830,1713547919266,-1698.74,0.00015342,2]
[322965831,1713547919278,-500.0,0.00015342,2]
[322965832,1713547919288,-500.0,0.00015342,2]
[322965833,1713547919298,-500.0,0.00015342,2]
[322965834,1713547919308,-811.94,0.00015342,2]
[322965835,1713547919318,-2166.43,0.00015342,2]
[322965836,1713547919328,-500.0,0.00015342,2]
[322965837,1713547919338,-2680.87,0.00015342,2]
[322965838,1713547919348,-5021.77,0.00015342,2]
[322965839,1713547919357,-500.0,0.00015342,2]
[322965840,1713547919367,-3326.38,0.00015342,2]
[322965841,1713547919376,-7308.28,0.00015342,2]
[322965842,1713547919386,-3575.85,0.00015342,2]
[322965843,1713547919395,-500.0,0.00015342,2]
[322965844,1713547919405,-500.0,0.00015342,2]
[322965845,1713547919416,-500.0,0.00015342,2]
[322965846,1713547919426,-866.36,0.00015342,2]
[322965847,1713547919435,-5687.27,0.00015342,2]
[322965848,1713547919447,-3274.38,0.00015342,2]
[322965849,1713547919457,-2569.93,0.00015342,2]
[322965850,1713547919467,-3955.01,0.00015342,2]
[322965851,1713547919476,-566.94,0.00015342,2]
[322965852,1713547919487,-2170.26,0.00015342,2]
[322965853,1713547919498,-500.0,0.00015342,2]
[322965854,1713547919508,-926.38,0.00015342,2]
[322965855,1713547919518,-2771.27,0.00015342,2]
[322965856,1713547919529,-531.64,0.00015342,2]
[322965857,1713547919539,-3429.85,0.00015342,2]
[322965858,1713547919549,-811.58,0.00015342,2]
[322965859,1713547919558,-500.0,0.00015342,2]
[322965860,1713547919568,-4169.76,0.00015342,2]
[322965861,1713547919577,-500.0,0.00015342,2]
[322965862,1713547919588,-1171.56,0.00015342,2]
[322965863,1713547919598,-7301.02,0.00015342,2]
[322965864,1713547919608,-740.92,0.00015342,2]
[322965865,1713547919618,-5217.82,0.00015342,2]
[322965866,1713547919628,-1673.96,0.00015342,2]
[322965867,1713547919638,-500.0,0.00015342,2]
[322965868,1713547919647,-500.0,0.00015342,2]
[322965869,1713547919657,-640.68,0.00015342,2]
[322965870,1713547919668,-3617.11,0.00015342,2]
[322965871,1713547919678,-2057.12,0.00015342,2]
[322965872,1713547919687,-464.35779189,0.00015342,2]
[322965873,1713547919697,-4923.85,0.00015342,2]
[322965874,1713547919707,-500.0,0.00015342,2]
[322965875,1713547919717,-1801.44,0.00015342,2]
[322965876,1713547919727,-1954.87,0.00015342,2]
[322965877,1713547919737,-4779.03,0.00015342,2]
[322965878,1713547919746,-1554.88,0.00015342,2]
[322965879,1713547919756,-1770.16,0.00015342,2]
[322965880,1713547919765,-638.45,0.00015342,2]
[322965881,1713547919775,-500.0,0.00015342,2]
[322965882,1713547919785,-2684.17,0.00015342,2]
[322965883,1713547919795,-746.73,0.00015342,2]
[322965884,1713547919805,-500.0,0.00015342,2]
[322965885,1713547919814,-678.26,0.00015342,2]
[322965886,1713547919823,-512.19,0.00015342,2]
[322965887,1713547919833,-500.0,0.00015342,2]
[322965888,1713547919842,-1504.54,0.00015342,2]
[322965889,1713547919851,-3655.54,0.00015342,2]
[322965890,1713547919861,-8067.16,0.00015342,2]
[322965891,1713547919870,-1114.62,0.00015342,2]
[322965892,1713547919879,-2012.53,0.00015342,2]
[322965893,1713547919889,-558.22,0.00015342,2]
[322965894,1713547919898,-1607.78,0.00015342,2]
[322965895,1713547919907,-1500.58,0.00015342,2]
[322965896,1713547919919,-500.0,0.00015342,2]
[322965897,1713547919928,-500.0,0.00015342,2]
[322965898,1713547919939,-3418.9,0.00015342,2]
[322965899,1713547919949,-500.0,0.00015342,2]
[322965900,1713547919958,-500.0,0.00015342,2]
[322965901,1713547919967,-500.0,0.00015342,2]
[322965902,1713547919977,-1792.81,0.00015342,2]
[322965903,1713547919987,-500.0,0.00015342,2]
[322965904,1713547919996,-1114.52,0.00015342,2]
[322965905,1713547920006,-2342.52,0.00015342,2]
[322965906,1713547920016,-27431.3,0.00015342,2]
[322965907,1713547920027,-532.06,0.00015342,2]
[322965908,1713547920038,-685.87,0.00015342,2]
[322965909,1713547920048,-500.0,0.00015342,2]
[322965910,1713547920058,-5407.88,0.00015342,2]
[322965911,1713547920069,-8673.57,0.00015342,2]
[322965912,1713547920079,-3071.89,0.00015342,2]
[322965913,1713547920089,-974.72,0.00015342,2]
[322965914,1713547920098,-500.0,0.00015342,2]
[322965915,1713547920108,-1450.35,0.00015342,2]
[322965916,1713547920117,-1683.58,0.00015342,2]
[322965917,1713547920127,-500.0,0.00015342,2]
[322965918,1713547920136,-500.0,0.00015342,2]
[322965919,1713547920147,-500.0,0.00015342,2]
[322965920,1713547920157,-500.0,0.00015342,2]
[322965921,1713547920170,-639.7,0.00015342,2]
[322965922,1713547920180,-1237.51,0.00015342,2]
[322965923,1713547920190,-4332.15,0.00015342,2]
[322965924,1713547920199,-1182.46,0.00015342,2]
[322965925,1713547920209,-2597.97,0.00015342,2]
[322965926,1713547920218,-3651.9,0.00015342,2]
[322965927,1713547920227,-2382.29,0.00015342,2]
[322965928,1713547920238,-15683.86,0.00015342,2]
[322965929,1713547920247,-7128.78,0.00015342,2]
[322965930,1713547920257,-500.0,0.00015342,2]
[322965931,1713547920267,-584.09283003,0.00015342,2]
[322965932,1713547920277,-500.44,0.00015342,2]
[322965933,1713547920287,-906.78,0.00015342,2]
[322965934,1713547920297,-936.01,0.00015342,2]
[322965935,1713547920307,-894.61,0.00015342,2]
[322965936,1713547920317,-3390.69,0.00015342,2]
[322965937,1713547920327,-500.0,0.00015342,2]
[322965938,1713547920337,-363.88515585,0.00015342,2]
[322965939,1713547920348,-500.0,0.00015342,2]
[322965940,1713547920357,-680.181161,0.00015342,2]
[322965941,1713547920367,-5800.0,0.00015358,2]
[322965942,1713547920376,-5800.0,0.00015366,2]
[322965943,1713547920385,-5800.0,0.00015375,2]
[322965944,1713547920395,-25448.16585625,0.00015391,2]
[322965945,1713547920404,-5800.0,0.000154,2]
[322965946,1713547920416,-1551.0,0.00015452,2]
[322965947,1713547920425,-518.0,0.00015452,2]
[322965948,1713547920435,-206777.03112937,0.00015478,2]
[322965949,1713547920447,-1003010.99444071,0.00015478,2]
[322965950,1713547920458,-12712.79899427,0.00015478,2]
[322965951,1713547920468,-329.87296338,0.00015478,2]
[322965952,1713547920478,-316.53506279,0.00015478,2]
[322965953,1713547920488,-1000.0,0.00015479,2]
[322965954,1713547920498,-1000.0,0.00015479,2]
[322965955,1713547920508,-1000.0,0.00015479,2]
[322965956,1713547920519,-1000.0,0.00015479,2]
[322965957,1713547920530,-1000.0,0.00015479,2]
[322965958,1713547920540,-1000.0,0.00015479,2]
[322965959,1713547920549,-1000.0,0.00015479,2]
[322965960,1713547920559,-1000.0,0.00015479,2]
[322965961,1713547920569,-1000.0,0.00015479,2]
[322965962,1713547920578,-1000.0,0.00015479,2]
[322965963,1713547920588,-1000.0,0.00015479,2]
[322965964,1713547920597,-1000.0,0.00015479,2]
[322965965,1713547920607,-1000.0,0.00015479,2]
[322965966,1713547920616,-1000.0,0.00015479,2]
[322965967,1713547920626,-1000.0,0.00015479,2]
[322965968,1713547920635,-163.0,0.00015479,2]
[322965969,1713547920645,-1000.0,0.00015479,2]
[322965970,1713547920654,-1000.0,0.00015479,2]
[322965971,1713547920667,-1000.0,0.00015479,2]
[322965972,1713547920676,-1000.0,0.00015479,2]
[322965973,1713547920686,-1000.0,0.00015479,2]
[322965974,1713547920695,-1000.0,0.00015479,2]
[322965975,1713547920705,-1000.0,0.00015479,2]
[322965976,1713547920714,-1000.0,0.00015479,2]
[322965977,1713547920724,-1000.0,0.00015479,2]
[322965978,1713547920733,-1000.0,0.00015479,2]
[322965979,1713547920743,-1000.0,0.00015479,2]
[322965980,1713547920753,-1000.0,0.00015479,2]
[322965981,1713547920763,-1000.0,0.00015479,2]
[322965982,1713547920772,-1000.0,0.00015479,2]
[322965983,1713547920782,-1000.0,0.00015479,2]
[322965984,1713547920791,-1000.0,0.00015479,2]
[322965985,1713547920801,-1000.0,0.00015479,2]
[322965986,1713547920811,-1000.0,0.00015479,2]
[322965987,1713547920820,-1000.0,0.00015479,2]
[322965988,1713547920830,-1000.0,0.00015479,2]
[322965989,1713547920841,-1000.0,0.00015479,2]
[322965990,1713547920852,-1000.0,0.00015479,2]
[322965991,1713547920863,-1000.0,0.00015479,2]
[322965992,1713547920873,-1000.0,0.00015479,2]
[322965993,1713547920883,-1000.0,0.00015479,2]
[322965994,1713547920893,-1100.0,0.00015479,2]
[322965995,1713547920903,-155.18235209,0.000155,2]
[322965996,1713547920916,-150.0,0.000155,2]
[322965997,1713547920926,-9788.67311809,0.00015527,2]
[322965998,1713547920937,-10089.02728076,0.00015527,2]
[322965999,1713547920947,-25448.16585625,0.00015591,2]
[322966000,1713547920957,-500.0,0.00015616,2]
[322966001,1713547920967,-500.0,0.00015616,2]
[322966002,1713547920977,-500.0,0.00015616,2]
[322966003,1713547920987,-2110.51,0.00015616,2]
[322966004,1713547920996,-587.44,0.00015616,2]
[322966005,1713547921006,-885.07,0.00015616,2]
[322966006,1713547921016,-533.25,0.00015616,2]
[322966007,1713547921025,-500.0,0.00015616,2]
[322966008,1713547921036,-588.52,0.00015616,2]
[322966009,1713547921046,-277.78042235,0.00015616,2]
[322966010,1713547921056,-688.61,0.00015616,2]
[322966011,1713547921068,-500.0,0.00015616,2]
[322966012,1713547921078,-500.0,0.00015616,2]
[322966013,1713547921087,-1128.42,0.00015616,2]
[322966014,1713547921097,-1405.03,0.00015616,2]
[322966015,1713547921107,-676.86,0.00015616,2]
[322966016,1713547921116,-507.93,0.00015616,2]
[322966017,1713547921126,-1724.21,0.00015616,2]
[322966018,1713547921332,-500.0,0.00015616,2]
[322966019,1713547921378,-853.04,0.00015616,2]
[322966020,1713547921387,-1185.05,0.00015616,2]
[322966021,1713547921397,-500.0,0.00015616,2]
[322966022,1713547921407,-500.0,0.00015616,2]
[322966023,1713547921420,-868.94,0.00015616,2]